Cogmind - Beta 10.2 *** ADVENTURER MODE // 2021.08.25 @ 16:15:23 Player: Lucky Result: Self-destructed Performance ------------- Evolutions (1) 500 Regions Visited (4) 800 Robots Destroyed (11) 55 Value Destroyed (111) 111 Prototype IDs (4) 80 Alien Tech Used (0) 0 Bonus (0) 0 TOTAL SCORE: 1546 Bonus ------- None Cogmind --------- Core Integrity 367/400 Matter 260/300 Energy 123/125 System Corruption 0% Temperature Cool (2) Movement Flying (37) Location -9/Storage Parts ------- > --- POWER (1) -------- Light Ion Engine > --- PROPULSION (2) --- Flight Unit Flight Unit > --- UTILITY (4) ------ (None) > --- WEAPON (2) ------- Datajack > --- INVENTORY (4) ---- Light Ion Engine Light EM Pulse Cannon Mining Claw Peak State ------------ > --- POWER ------------ Light Ion Engine > --- PROPULSION ------- Wheel Wheel > --- UTILITY ---------- Small Storage Unit Improved Terrain Scanner > --- WEAPON ----------- Small Laser Assault Rifle > --- INVENTORY -------- Light Ion Engine Mining Laser [Rating: 8] Favorites ----------- Power Light Ion Engine Engine Light Ion Engine Propulsion Flight Unit Wheel Wheel Flight Unit Flight Unit Utility Small Storage Unit Device Improved Terrain Scanner Storage Small Storage Unit Processor Seismic Analyzer Weapon Assault Rifle Energy Gun Small Laser Energy Cannon Light EM Pulse Cannon Ballistic Gun Assault Rifle Launcher Grenade Launcher Special Weapon Mining Laser Slashing Weapon Mining Claw Special Melee Weapon Datajack Build | -11 -10 -10 -9 -9 ------- Run | Scr Mat Min Mat Sto Slots Evolved 2 | . . . 2 . Power . | . . . . . Propulsion . | . . . . . Utility 2 | . . . 2 . Weapon . | . . . . . Parts Attached 28 | 9 14 2 3 . Power 3 | 2 . . 1 . Engine 3 | 2 . . 1 . Core . | . . . . . Reactor . | . . . . . Propulsion 7 | 2 4 1 . . Treads . | . . . . . Leg . | . . . . . Wheel 3 | 2 1 . . . Hover . | . . . . . Flight 4 | . 3 1 . . Utility 5 | 3 2 . . . Device 3 | 1 2 . . . Storage 1 | 1 . . . . Processor 1 | 1 . . . . Hackware . | . . . . . Protection . | . . . . . Artifact . | . . . . . Weapon 13 | 2 8 1 2 . Energy Gun 1 | 1 . . . . Energy Cannon 1 | . . . 1 . Ballistic Gun 2 | 1 1 . . . Ballistic Cannon . | . . . . . Launcher 2 | . 2 . . . Special Weapon 3 | . 3 . . . Impact Weapon . | . . . . . Slashing Weapon 2 | . 1 1 . . Piercing Weapon . | . . . . . Special Melee Weapon 2 | . 1 . 1 . Unidentified Prototypes . | . . . . . Parts Lost 5 | . 3 2 . . Power . | . . . . . Propulsion 2 | . 1 1 . . Utility 1 | . . 1 . . Weapon 2 | . 2 . . . Highest Loss Streak 2 | . 2 2 . . Average Slot Usage (%) 75 | . 88 65 45 44 Engine 13 | . 14 14 11 11 Wheel 8 | . 12 . . . Flight 17 | . 15 24 22 22 Device 9 | . 12 12 . . Storage 5 | . 8 . . . Energy Gun 1 | . 1 . . . Ballistic Gun 4 | . 6 . . . Launcher 4 | . 7 . . . Special Weapon 4 | . 6 . . . Slashing Weapon 1 | . . 14 1 . Special Melee Weapon 4 | . 2 . 11 11 Naked Turns . | . . . . . Heaviest Build 13 | 12 13 6 5 4 Greatest Support 20 | 20 20 8 8 8 Greatest Overweight (x) 1 | . . 1 . . Average Overweight (x) . | . . . . . Largest Inventory Capacity 6 | 6 6 4 4 4 Average Capacity 4 | 5 5 4 4 4 Most Carried 6 | 5 6 4 4 3 Average Carried 3 | 1 4 3 3 3 Final Capacity 6 | 6 4 4 4 4 Final Carried 5 | 5 4 3 3 3 Class Distribution -------------------- 90% | Mutant 9% | Scavenger-Mutant Dominant Class ---------------- Mutant | -10/Materials Mutant | -10/Mines Mutant | -9/Materials Mutant | -9/Storage Resources | -11 -10 -10 -9 -9 ----------- Run | Scr Mat Min Mat Sto Matter Collected 522 | 314 208 . . . Remotely . | . . . . . Salvage Created 211 | 149 62 . . . Parts 26 | 16 10 . . . Haulers Intercepted . | . . . . . Recyclers Shooed . | . . . . . Parts Field Recycled . | . . . . . Retrieved Matter . | . . . . . Parts Self-Destructed . | . . . . . Prevented . | . . . . . Kills | -11 -10 -10 -9 -9 ------- Run | Scr Mat Min Mat Sto Combat Hostiles Destroyed 3 | . 3 . . . Guns 1 | . 1 . . . AOE 2 | . 2 . . . Classes Destroyed 5 | 2 3 . . . Builder 1 | . 1 . . . Tunneler 4 | 4 . . . . Recycler 1 | 1 . . . . Watcher 2 | . 2 . . . Swarmer 3 | . 3 . . . Best Kill Streak 5 | 3 5 . . . Combat Bots Only 3 | . 3 . . . Max Kills in Single Turn 2 | 1 2 . . . Gunslinging . | . . . . . Exploded 1 | . 1 . . . Melee . | . . . . . Uniques/NPCs Destroyed . | . . . . . Combat | -11 -10 -10 -9 -9 -------- Run | Scr Mat Min Mat Sto Damage Taken 628 | . 461 96 . 71 Core 231 | . 166 32 . 33 Absorbed by Shields . | . . . . . Core Remaining (%) 60 | 100 . 20 . . Volleys Fired 25 | 8 17 . . . Largest 2 | 2 1 . . . Hottest 100 | 60 100 . . . Shots Fired 33 | 16 17 . . . Gun 22 | 16 6 . . . Cannon . | . . . . . Launcher 6 | . 6 . . . Special 5 | . 5 . . . Kinetic 14 | 8 6 . . . Thermal 13 | 8 5 . . . Explosive 6 | . 6 . . . Electromagnetic . | . . . . . Robot Hit Streak 13 | 13 3 . . . Robot Miss Streak 2 | 1 2 . . . Penetration Max . | . . . . . Secondary Targets . | . . . . . Shots Hit Robots 26 | 14 12 . . . Core Hits 14 | 6 8 . . . Critical Hits . | . . . . . Critical Kills . | . . . . . Critical Parts Destroyed . | . . . . . Melee Attacks 20 | . 5 15 . . Impact . | . . . . . Slashing 15 | . . 15 . . Piercing . | . . . . . Sneak Attacks 3 | . 3 . . . Combat Hostiles . | . . . . . Follow-up Attacks . | . . . . . Damage Inflicted 564 | 166 398 . . . Guns 203 | 166 37 . . . Cannons . | . . . . . Explosions 361 | . 361 . . . Melee . | . . . . . Ramming . | . . . . . Kinetic 127 | 90 37 . . . Thermal 76 | 76 . . . . Explosive 361 | . 361 . . . Electromagnetic . | . . . . . Impact . | . . . . . Slashing . | . . . . . Piercing . | . . . . . Highest Corruption 4 | . 1 4 . . Average Corruption 1 | . 1 1 . . Corruption Purged . | . . . . . Effects 2 | . 1 1 . . Message Errors 1 | . . 1 . . Data Loss (minor) 1 | . 1 . . . Overload Shots . | . . . . . Overflow Damage 8 | . 8 . . . Projectiles . | . . . . . Explosions 8 | . 8 . . . Melee . | . . . . . Knockbacks . | . . . . . Impact . | . . . . . Kinetic . | . . . . . Secondary . | . . . . . Self-Inflicted Damage . | . . . . . Shots . | . . . . . Rammed . | . . . . . Targets Rammed . | . . . . . Kicked . | . . . . . Crushed . | . . . . . Highest Temperature 104 | . 104 . . . Average Temperature 43 | . 43 . . . Received Heat Transfer 18 | . . 9 . 9 Siege Activations . | . . . . . Robots Corrupted . | . . . . . Combat Hostiles . | . . . . . Parts Fried . | . . . . . Impact Corruptions . | . . . . . Robots Melted . | . . . . . Combat Hostiles . | . . . . . Parts Melted . | . . . . . Heat Transferred 175 | 175 . . . . Parts Sabotaged . | . . . . . Parts Stolen . | . . . . . Parts Stripped . | . . . . . Power Chain Reactions . | . . . . . Missiles Intercepted . | . . . . . Alert | -11 -10 -10 -9 -9 ------- Run | Scr Mat Min Mat Sto Peak Influence 207 | 25 207 63 103 96 Initial 63 | . 13 63 13 36 Average 88 | 12 126 58 45 65 Maximum Alert Level 1 | . 1 . . . Low Security (%) 99 | 100 99 100 100 100 Level 1 . | . . . . . Level 2 . | . . . . . Level 3 . | . . . . . Level 4 . | . . . . . Level 5 . | . . . . . High Security . | . . . . . Max Security . | . . . . . Squads Dispatched 4 | . 1 . . 3 Investigation 2 | . 1 . . 1 Extermination . | . . . . . Reinforcement 2 | . . . . 2 Assault . | . . . . . Garrison . | . . . . . Intercept . | . . . . . Construction Impeded . | . . . . . Haulers Reinforced . | . . . . . Stealth | -11 -10 -10 -9 -9 --------- Run | Scr Mat Min Mat Sto Distress Signals 2 | . 1 . 1 . Communications Jammed . | . . . . . Distress Signals . | . . . . . Times Spotted 33 | . 9 6 4 14 Peak Tracking Total 14 | . 4 8 5 14 Tactical Retreats 6 | . 2 . 2 2 Traps | -11 -10 -10 -9 -9 ------- Run | Scr Mat Min Mat Sto Traps Triggered 2 | . 1 . . 1 Indirectly . | . . . . . Trap Hack Attempts . | . . . . . Triggered . | . . . . . Disarmed . | . . . . . Reprogrammed . | . . . . . Reused . | . . . . . Traps Extracted . | . . . . . Installed . | . . . . . Triggered . | . . . . . Machines | -11 -10 -10 -9 -9 ---------- Run | Scr Mat Min Mat Sto Machines Disabled 1 | . 1 . . . Max in Single Turn 1 | . 1 . . . Machines Sabotaged . | . . . . . Garrisons Compromised . | . . . . . Overloaded Fab Kills . | . . . . . Fab Network Shutdowns . | . . . . . Hacking | -11 -10 -10 -9 -9 --------- Run | Scr Mat Min Mat Sto Machines Accessed 9 | . 8 . 1 . Terminals 7 | . 7 . . . Fabricators . | . . . . . Repair Stations . | . . . . . Recycling Units 2 | . 1 . 1 . Scanalyzers . | . . . . . Garrison Access . | . . . . . Total Hacks 40 | . 38 . 2 . Successful 31 | . 29 . 2 . Failed 9 | . 9 . . . Catastrophic . | . . . . . Database Lockouts . | . . . . . Manual 24 | . 24 . . . Terminals 32 | . 32 . . . Fabricators . | . . . . . Repair Stations . | . . . . . Recycling Units 8 | . 6 . 2 . Scanalyzers . | . . . . . Garrison Access . | . . . . . Terminal Hacks 11 | . 11 . . . Robot Analysis 1 | . 1 . . . Prototype ID Bank 2 | . 2 . . . Level Access Points 1 | . 1 . . . Branch Access Points 1 | . 1 . . . Terminal Index 1 | . 1 . . . Locate Traps 1 | . 1 . . . Recall Reinforcements 1 | . 1 . . . Registered Prototypes 1 | . 1 . . . Zone Layout 2 | . 2 . . . Fabricator Hacks . | . . . . . Repair Station Hacks . | . . . . . Recycling Unit Hacks 6 | . 4 . 2 . Recycle Component 2 | . 2 . . . Process 1 | . . . 1 . Report Inventory 2 | . 1 . 1 . Retrieve Components 1 | . 1 . . . Scanalyzer . | . . . . . Garrison Access Hacks . | . . . . . Unauthorized Hacks 14 | . 14 . . . Terminals 14 | . 14 . . . Track 7 | . 7 . . . Botnet 7 | . 7 . . . Fabricators . | . . . . . Repair Stations . | . . . . . Recycling Units . | . . . . . Scanalyzers . | . . . . . Garrison Access . | . . . . . Data Cores Recovered . | . . . . . Used . | . . . . . Hacking Detections 9 | . 8 . 1 . Full Trace Events . | . . . . . Feedback Events . | . . . . . Feedback Blocked . | . . . . . Robot Schematics Acquired . | . . . . . Robots Built . | . . . . . Matter . | . . . . . Time . | . . . . . Total Robot Build Rating . | . . . . . Part Schematics Acquired . | . . . . . Parts Built . | . . . . . Matter . | . . . . . Time . | . . . . . Total Part Build Rating . | . . . . . Parts Repaired . | . . . . . Time . | . . . . . Parts Recycled 2 | . 2 . . . Recycled Matter 11 | . . . 11 . Retrieved Matter . | . . . . . Retrieved Components 7 | . 7 . . . Parts Scanalyzed . | . . . . . Part Schematics Acquired . | . . . . . Parts Damaged . | . . . . . Bothacking | -11 -10 -10 -9 -9 ------------ Run | Scr Mat Min Mat Sto Used RIF Installer . | . . . . . Robots Hacked 2 | . 2 . . . Non-combat 2 | . 2 . . . Combat . | . . . . . Robot Hacks Applied 2 | . 2 . . . parse_system 1 | . 1 . . . find_station 1 | . 1 . . . Relay Couplers Released . | . . . . . Robots Rewired . | . . . . . Allies Hacked . | . . . . . Hacks Repelled . | . . . . . Allies | -11 -10 -10 -9 -9 -------- Run | Scr Mat Min Mat Sto Total Allies . | . . . . . Largest Group . | . . . . . Highest-Rated Group . | . . . . . Highest-Rated Ally . | . . . . . Total Orders . | . . . . . Ally Attacks . | . . . . . Total Damage . | . . . . . Kills . | . . . . . Allies Corrupted . | . . . . . Allies Melted . | . . . . . Intel | -11 -10 -10 -9 -9 ------- Run | Scr Mat Min Mat Sto Robot Analysis Total 1 | . 1 . . . Derelict Logs Recovered . | . . . . . Drone Launches . | . . . . . Drone Recoveries . | . . . . . Exploration | -11 -10 -10 -9 -9 ------------- Run | Scr Mat Min Mat Sto Turns Passed 653 | 93 358 68 65 69 Spaces Moved 918 | 62 501 34 144 177 Core 1 | 1 . . . . Treads . | . . . . . Legs . | . . . . . Wheels 223 | 61 162 . . . Hover . | . . . . . Flight 694 | . 339 34 144 177 Fastest Speed 37 | 50 37 37 37 37 Average Speed 47 | 79 50 46 37 37 Slowest Speed 120 | 80 80 120 37 37 Overloaded Moves . | . . . . . Propulsion Burnouts . | . . . . . Robots Hopped 9 | . 2 . 2 5 Cave-ins Triggered 3 | . 1 2 . . Exploration Rate (%) 30 | 4 75 8 19 46 Regions Visited 4 Branch Regions 2 Pre-discovered Areas . | . . . . . Known Exits Taken 2 | . 1 1 . . Unknown Exits Taken 2 | 1 . . 1 . Scrap Searched . | . . . . . Spaces Dug 19 | . 5 14 . . Terrain Destroyed 55 | . 41 14 . . Melee 14 | . . 14 . . Projectile 5 | . 5 . . . AOE 36 | . 36 . . . Terrain Rammed . | . . . . . Walls Destroyed . | . . . . . Machines Disabled . | . . . . . Actions | -11 -10 -10 -9 -9 --------- Run | Scr Mat Min Mat Sto Total 1042 | 86 572 55 154 175 Wait 25 | . 14 4 4 3 Move 894 | 61 495 31 139 168 Hop 8 | . 2 . 2 4 Pick Up 17 | 6 9 . 2 . Fast Attach 13 | 8 5 . . . Attach 10 | . 6 2 2 . Detach 6 | . 3 1 2 . Swap 5 | 1 3 . 1 . Drop 16 | 2 12 . 2 . Fire 25 | 8 17 . . . Melee 20 | . 5 15 . . Ram . | . . . . . Kick . | . . . . . Crush . | . . . . . Escape Stasis 3 | . 1 2 . . Rewire . | . . . . . Trap . | . . . . . Miscellaneous . | . . . . . Route ------- -11/Scrapyard -10/Materials (discovered 5 exits: *Mat x3 / *Min x2) -10/Mines -9/Materials -9/Storage History --------- Turn | Location | Event 8 | -11/Scrapyard | Discovered new exit (range 16) 94 | -11/Scrapyard | Entered Materials 202 | -10/Materials | Discovered new exit (range 10) 216 | -10/Materials | Discovered new exit (range 17) 283 | -10/Materials | Discovered new exit (range 10) 303 | -10/Materials | Identified exit to Mines 303 | -10/Materials | Identified exit to Materials 379 | -10/Materials | Crushed by falling debris 380 | -10/Materials | Core integrity fell below 50% 452 | -10/Materials | Entered Mines 453 | -10/Mines | Assembled infested the area 458 | -10/Mines | Assisted by a Guerilla fighting off Assembled 497 | -10/Mines | Crushed by falling debris 515 | -10/Mines | Discovered exit to Materials (range 7) 515 | -10/Mines | Crushed by falling debris 520 | -10/Mines | Entered Materials 520 | -9/Materials | Evolved 2 slots: Utility x2 565 | -9/Materials | Discovered new exit (range 5) 573 | -9/Materials | Build established: Mutant 585 | -9/Materials | Entered Storage 654 | -9/Storage | Self-destructed Last Messages --------------- EM Shotgun (9) EM Shotgun (2) 00542_ W-16 Scout distress signal alerts nearby ally. 00550_ Dropped Lgt. Ion Engine. 00551_ Acquired Integration Mediator. 00552_ Dropped Integration Mediator. 00565_ EXIT=FOUND 00570_ K-01 Serf collects debris. LOCATION=UNKNOWN GOAL=ESCAPE 00586_ Triggered Alarm Trap. 00586_ An alarm sounds. 00586_ ALERT: Alarm triggered, dispatching investigation squad. 00607_ K-01 Serf collects debris. 00633_ K-01 Serf destroyed. 00647_ O-16 Technician: "IFF HANDSHAKE FAILED. SECURING TERMINAL." 00651_ ALERT: Hostiles spotted, dispatching reinforcements to Terminal S013. 00651_ ALERT: Hostiles spotted, dispatching reinforcements to Terminal S004. Map ----- +----------------------------------------------------+ | | | | | | | | | ???????????????????????????????????????? | | ???????????????????????????????????????? | | ???????????????????????????????????????? | | ???????????????????????????????????????? | | ???????????????????????????????????????? | | ???????????????????????????????????????? | | ???????????????????????????????????????? | | ???????????????????????????????????????? | | ???????????????????????????????????????? | | ???????????????????????????????????????? | | ???????????????????????????????????????? | | ????????????????? ???????????????????? | | ????????????????? #??????????????????? | | ????????????????? #??????????????????? | | ????????????????# #??????????????????? | | ????????????????# #??????????????????? | | ????????????????# #??????????????????? | | ????????????????# +??????????????????? | | ????????????????# #??????????????????? | | ???????########## #??????????????????? | | ???????# # ###########?##?????? | | ???????# @# ## ### ###### | | ???????# """"s # ## """"" ## | | ???????# ???""ss# ## "???" ## | | ???????#?????""s# ## "??"" ## | | ??????????????" + ## ""??" #" | | ??????????????" # ## "???" #T """ """ | | ??????????????" # ## """"" #" """ """ | | ?????????????? # ## ## """ """ | | ?????????????#### ## ## | | ???????????????# #####+##+######+##+ | | ???????????????# | | ???????????????+ %= | | ???????????????# ! | | ???????????????# ################### | | ???????????????## ##?????????????????? | | ????????????????# #??????????????????? | | ????????????????# #??????????????????? | | ????????????????# #??????????????????? | | ????????????????# #??????????????????? | | ????????????????# #??????????????????? | | ????????????????# ???????????????????? | | ????????????????# ???????????????????? | | ????????????????+ ???????????????????? | | ????????????????# ???????????????????? | | ??????????????????#????????????????????? | +----------------------------------------------------+ Best States ------------- Heat Dissipation 28 Energy Generation 10 Energy Capacity 250 Matter Stores 300 Matter Capacity 300 Sight Range 16 Robot Scan Range 13 Terrain Scan Range 16 Terrain Scan Density 60 Resistance: KI 20 Resistance: TH 20 Resistance: EX 20 Resistance: EM 20 Resistance: I 20 Resistance: S 20 Resistance: P 20 Evasion (%) 62 Offensive Hacking 10 Item Schematics ----------------- None Robot Schematics ------------------ None Fabricated ------------ Nothing Alien Tech Used ----------------- None Achievements -------------- None Challenges ------------ None Game ------ Seed MasterAerolevRailgun Manual? 0 Play Time 00:26:03 Cumulative 76.5 hours Start 2021.08.25 @ 15:50:34 End 2021.08.25 @ 16:15:23 Sessions 1 Manual Loads 0 Difficulty Adventurer Special Mode None Game No. 97 Rogue 94 Adventurer 3 Explorer 0 Win Type - Total 0 Types 0/0/0/0/0/0/0/0/0 Lore% 26 Gallery% 28 Achievement% 29 Wizard Run 0 Options --------- ASCII 0 Keyboard 0 Movement Numpad Keybinds 0 Fullscreen 1 Font 36/Smallcaps Map View 76x50 Tactical HUD 1 Map Filters NONE Filters NONE Steam 1 RUN: 7e8698c0-0578-42fe-9e3f-6935899dd515